[Event "Modransky Cup 2025"]
[Site "Modra"]
[Date "2025.02.22"]
[Round "4.16"]
[White "Chojnacki, Kevin"]
[Black "Novomeska, Karin"]
[Result "1/2-1/2"]
[Annotator "RC"]
[ECO "A30"]
[WhiteElo "1643"]
[BlackElo "2006"]
[PlyCount "83"]
[EventDate "2025.02.20"]
[EventCountry "SVK"]
[SourceTitle "playchess.com"]
[Source "ChessBase"]
[SourceQuality "1"]
[TimeControl "5400+30"]

1. Nf3 {[%emt 0:00:05]} d5 {[%emt 0:00:07]} 2. g3 {[%emt 0:00:06]} c5 {[%emt 0:00:13]} 3. Bg2 {[%emt 0:00:11]} Nc6 {[%emt 0:00:11]} 4. d4 {[%emt 0:00:08]} Nf6 {[%emt 0:01:56]} 5. O-O {[%emt 0:00:31]} Bf5 {[%emt 0:02:26]} 6. c4 {[%emt 0:00:42]} e6 {[%emt 0:01:47]} 7. cxd5 {[%emt 0:02:08]} Nxd5 {[%emt 0:04:51]} 8. Ne5 {[%emt 0:05:38]} cxd4 {[%emt 0:31:45]} 9. Nxc6 {[%emt 0:00:20]} bxc6 {[%emt 0:00:07]} 10. Qxd4 {[%emt 0:00:39]} Nb4 {[%emt 0:06:21]} 11. Qxd8+ {[%emt 0:03:25]} Rxd8 {[%emt 0:07:53]} 12. Na3 {[%emt 0:01:22]} Be7 {[%emt 0:07:50]} 13. Be3 {[%emt 0:00:54]} O-O {[%emt 0:02:39]} 14. Bxa7 {[%emt 0:08:10]} Rd2 {[%emt 0:16:48]} 15. e4 {[%emt 0:00:30]} Bg6 {[%emt 0:00:13]} 16. Nc4 {[%emt 0:00:19]} Rc2 {[%emt 0:00:52]} 17. Rfc1 {[%emt 0:01:49]} Rxc1+ {[%emt 0:01:28]} 18. Rxc1 {[%emt 0:00:08]} Nxa2 {[%emt 0:00:49]} 19. Ra1 {[%emt 0:05:25]} Nb4 {[%emt 0:00:14]} 20. Rd1 {[%emt 0:07:00]} Rd8 {[%emt 0:02:32]} 21. Rxd8+ {[%emt 0:04:20]} Bxd8 {[%emt 0:00:02]} 22. Ne5 {[%emt 0:00:50]} Bf6 {[%emt 0:01:43]} 23. Nxg6 {[%emt 0:01:03]} hxg6 {[%emt 0:00:16]} 24. b3 {[%emt 0:00:16]} Be7 {[%emt 0:04:13]} 25. Bd4 {[%emt 0:02:23]} c5 {[%emt 0:00:27]} 26. Bc3 {[%emt 0:02:29]} Na2 {[%emt 0:04:15]} 27. Bb2 {[%emt 0:00:46]} Bf6 {[%emt 0:00:49]} 28. e5 {[%emt 0:00:42]} Bd8 {[%emt 0:00:15]} 29. Bf1 {[%emt 0:00:42]} Kf8 {[%emt 0:01:07]} 30. Bc4 {[%emt 0:01:33]} Ke8 {[%emt 0:00:21]} 31. Kf1 {[%emt 0:01:03]} Kd7 {[%emt 0:00:26]} 32. Ke2 {[%emt 0:01:05]} Kc6 {[%emt 0:00:06]} 33. f4 {[%emt 0:01:42]} Ba5 {[%emt 0:00:10]} 34. g4 {[%emt 0:02:52]} Bc3 {[%emt 0:01:01]} 35. Bxc3 {[%emt 0:02:17]} Nxc3+ {[%emt 0:00:01]} 36. Kf3 {[%emt 0:09:07]} Nb5 {[%emt 0:01:25]} 37. Ke3 {[%emt 0:04:17]} Kb6 {[%emt 0:00:33]} 38. f5 {[%emt 0:05:22]} gxf5 {[%emt 0:00:07]} 39. gxf5 {[%emt 0:01:13]} Nd4 {[%emt 0:00:15]} 40. fxe6 {[%emt 0:00:58]} Nxe6 {[%emt 0:00:06]} 41. Ke4 {[%emt 0:02:26]} Kc6 {[%emt 0:00:22]} 42. h4 {[%emt 0:02:17]} 1/2-1/2

[Event "Modransky Cup 2025"]
[Site "Modra"]
[Date "2025.02.22"]
[Round "4.17"]
[White "Certik, Jaroslav"]
[Black "Pikulik, Roman"]
[Result "1-0"]
[Annotator "NA"]
[ECO "B22"]
[WhiteElo "1579"]
[BlackElo "1595"]
[PlyCount "35"]
[EventDate "2025.02.20"]
[EventCountry "SVK"]
[SourceTitle "playchess.com"]
[Source "ChessBase"]
[SourceQuality "1"]
[TimeControl "5400+30"]

1. e4 {[%emt 0:00:06]} c5 {[%emt 0:00:09]} 2. c3 {[%emt 0:00:29]} d5 {[%emt 0:02:31]} 3. exd5 {[%emt 0:02:19]} Qxd5 {[%emt 0:00:12]} 4. d4 {[%emt 0:00:40]} Nf6 {[%emt 0:00:28]} 5. Nf3 {[%emt 0:03:21]} Bg4 {[%emt 0:00:34]} 6. Na3 {[%emt 0:10:45]} a6 {[%emt 0:00:24]} 7. Bc4 {[%emt 0:04:27]} Qd7 {[%emt 0:00:50]} 8. h3 {[%emt 0:07:02]} Bxf3 {[%emt 0:16:12]} 9. Qxf3 {[%emt 0:01:59]} e6 {[%emt 0:00:10]} 10. O-O {[%emt 0:03:34]} cxd4 {[%emt 0:07:58]} 11. cxd4 {[%emt 0:02:35]} Bd6 {[%emt 0:06:39]} 12. Bg5 {[%emt 0:06:20]} Be7 {[%emt 0:00:20]} 13. Rfe1 {[%emt 0:03:28]} O-O {[%emt 0:08:20]} 14. Rad1 {[%emt 0:08:04]} Qc7 {[%emt 0:00:33]} 15. Bd3 {[%emt 0:10:57]} Nbd7 {[%emt 0:00:29]} 16. d5 {[%emt 0:06:49]} exd5 {[%emt 0:02:30]} 17. Rxe7 {[%emt 0:02:25]} h6 {[%emt 0:00:30]} 18. Bxf6 {[%emt 0:01:15]} 1-0

[Event "Modransky Cup 2025"]
[Site "Modra"]
[Date "2025.02.22"]
[Round "4.18"]
[White "Hudak, Michal"]
[Black "Vernerova, Ema"]
[Result "1-0"]
[Annotator "NA RC"]
[ECO "D05"]
[WhiteElo "1823"]
[BlackElo "1428"]
[PlyCount "33"]
[EventDate "2025.02.20"]
[EventCountry "SVK"]
[SourceTitle "playchess.com"]
[Source "ChessBase"]
[SourceQuality "1"]
[TimeControl "5400+30"]

1. d4 {[%emt 0:00:05]} d5 {[%emt 0:00:33]} 2. Nf3 {[%emt 0:00:07]} Nf6 {[%emt 0:00:20]} 3. e3 {[%emt 0:00:08]} e6 {[%emt 0:01:26]} 4. Bd3 {[%emt 0:00:09]} Bd6 {[%emt 0:02:16]} 5. Nbd2 {[%emt 0:00:26]} b6 {[%emt 0:00:19]} 6. O-O {[%emt 0:00:33]} Nbd7 {[%emt 0:01:34]} 7. e4 {[%emt 0:00:57]} dxe4 {[%emt 0:00:59]} 8. Nxe4 {[%emt 0:00:08]} Bb7 {[%emt 0:00:52]} 9. Nxd6+ {[%emt 0:03:19]} cxd6 {[%emt 0:00:53]} 10. Re1 {[%emt 0:03:08]} O-O {[%emt 0:02:38]} 11. Bg5 {[%emt 0:05:44]} Re8 {[%emt 0:03:29]} 12. Qd2 {[%emt 0:02:37]} Bxf3 {[%emt 0:01:08]} 13. gxf3 {[%emt 0:00:08]} h6 {[%emt 0:01:40]} 14. Bxh6 {[%emt 0:13:01]} gxh6 {[%emt 0:04:50]} 15. Qxh6 {[%emt 0:00:01]} Qe7 {[%emt 0:04:52]} 16. Kh1 {[%emt 0:00:08]} Qf8 {[%emt 0:00:34]} 17. Rg1+ {[%emt 0:00:07]} 1-0

[Event "Modransky Cup 2025"]
[Site "Modra"]
[Date "2025.02.22"]
[Round "4.19"]
[White "Banas, Samuel"]
[Black "Wolak, Jan"]
[Result "0-1"]
[Annotator "NA RC"]
[ECO "B50"]
[WhiteElo "1617"]
[BlackElo "1762"]
[PlyCount "68"]
[EventDate "2025.02.20"]
[EventCountry "SVK"]
[SourceTitle "playchess.com"]
[Source "ChessBase"]
[SourceQuality "1"]
[TimeControl "5400+30"]

1. e4 {[%emt 0:00:05]} c5 {[%emt 0:00:07]} 2. Nf3 {[%emt 0:00:05]} d6 {[%emt 0:00:05]} 3. c3 {[%emt 0:01:01]} Nf6 {[%emt 0:00:23]} 4. Bd3 {[%emt 0:00:08]} Nc6 {[%emt 0:00:16]} 5. O-O {[%emt 0:00:39]} Bg4 {[%emt 0:01:07]} 6. h3 {[%emt 0:00:34]} Bxf3 {[%emt 0:00:05]} 7. Qxf3 {[%emt 0:00:12]} g6 {[%emt 0:00:45]} 8. Bc2 {[%emt 0:00:28]} Bg7 {[%emt 0:00:11]} 9. d3 {[%emt 0:00:55]} O-O {[%emt 0:00:46]} 10. Be3 {[%emt 0:00:41]} b5 {[%emt 0:07:56]} 11. Nd2 {[%emt 0:02:34]} Rc8 {[%emt 0:15:03]} 12. Rac1 {[%emt 0:00:59]} Ne8 {[%emt 0:03:23]} 13. Rfd1 {[%emt 0:03:04]} Nc7 {[%emt 0:09:06]} 14. Qe2 {[%emt 0:04:09]} e5 {[%emt 0:19:50]} 15. Nf3 {[%emt 0:01:59]} Ne6 {[%emt 0:06:49]} 16. Bb3 {[%emt 0:06:27]} Qe7 {[%emt 0:08:53]} 17. Bxe6 {[%emt 0:06:01]} fxe6 {[%emt 0:00:51]} 18. d4 {[%emt 0:01:53]} cxd4 {[%emt 0:00:58]} 19. cxd4 {[%emt 0:00:09]} Nxd4 {[%emt 0:00:38]} 20. Bxd4 {[%emt 0:01:48]} Rxc1 {[%emt 0:00:24]} 21. Rxc1 {[%emt 0:00:10]} exd4 {[%emt 0:00:05]} 22. Qxb5 {[%emt 0:00:43]} h6 {[%emt 0:01:43]} 23. e5 {[%emt 0:03:41]} dxe5 {[%emt 0:09:09]} 24. Nxe5 {[%emt 0:01:13]} Qf6 {[%emt 0:01:04]} 25. Ng4 {[%emt 0:02:15]} Qf5 {[%emt 0:01:32]} 26. Rc5 {[%emt 0:04:21]} Qf4 {[%emt 0:01:42]} 27. Qc6 {[%emt 0:01:39]} d3 {[%emt 0:01:41]} 28. Qxe6+ {[%emt 0:03:28]} Kh7 {[%emt 0:00:30]} 29. Rd5 {[%emt 0:08:38]} h5 {[%emt 0:00:47]} 30. Ne3 {[%emt 0:08:27]} Qxf2+ {[%emt 0:00:07]} 31. Kh2 {[%emt 0:00:35]} d2 {[%emt 0:01:00]} 32. Qe4 {[%emt 0:01:03]} Qe2 {[%emt 0:01:21]} 33. Qd3 {[%emt 0:03:36]} Be5+ {[%emt 0:00:34]} 34. Rxe5 {[%emt 0:01:31]} Qxd3 {[%emt 0:00:10]} 0-1

[Event "Modransky Cup 2025"]
[Site "Modra"]
[Date "2025.02.22"]
[Round "4.20"]
[White "Chlupik Michal"]
[Black "Ronaj, Filip"]
[Result "0-1"]
[Annotator "NA RC"]
[ECO "B33"]
[WhiteElo "1355"]
[BlackElo "1746"]
[PlyCount "62"]
[EventDate "2025.02.20"]
[EventCountry "SVK"]
[SourceTitle "playchess.com"]
[Source "ChessBase"]
[SourceQuality "1"]
[TimeControl "5400+30"]

1. e4 {[%emt 0:00:15]} c5 {[%emt 0:00:13]} 2. Nf3 {[%emt 0:00:24]} Nc6 {[%emt 0:00:12]} 3. d4 {[%emt 0:00:21]} cxd4 {[%emt 0:00:13]} 4. Nxd4 {[%emt 0:00:26]} Nf6 {[%emt 0:00:14]} 5. Nc3 {[%emt 0:01:18]} e5 {[%emt 0:00:23]} 6. Nxc6 {[%emt 0:00:36]} bxc6 {[%emt 0:00:10]} 7. Be3 {[%emt 0:01:13]} Bb4 {[%emt 0:00:13]} 8. f3 {[%emt 0:02:27]} O-O {[%emt 0:00:09]} 9. a3 {[%emt 0:00:52]} Ba5 {[%emt 0:00:21]} 10. Be2 {[%emt 0:01:12]} d5 {[%emt 0:00:53]} 11. b4 {[%emt 0:02:43]} Bb6 {[%emt 0:03:40]} 12. Bxb6 {[%emt 0:02:55]} axb6 {[%emt 0:00:40]} 13. exd5 {[%emt 0:00:46]} cxd5 {[%emt 0:00:14]} 14. O-O {[%emt 0:02:31]} Ba6 {[%emt 0:04:32]} 15. Bxa6 {[%emt 0:02:26]} Rxa6 {[%emt 0:00:08]} 16. Qd3 {[%emt 0:00:37]} Ra8 {[%emt 0:01:00]} 17. Rfd1 {[%emt 0:00:51]} d4 {[%emt 0:01:08]} 18. Ne4 {[%emt 0:00:06]} Nxe4 {[%emt 0:00:59]} 19. fxe4 {[%emt 0:00:05]} Qd7 {[%emt 0:00:35]} 20. c3 {[%emt 0:01:03]} Rfd8 {[%emt 0:02:51]} 21. Kf1 {[%emt 0:02:15]} b5 {[%emt 0:01:57]} 22. cxd4 {[%emt 0:01:09]} exd4 {[%emt 0:09:36]} 23. Rd2 {[%emt 0:01:50]} Ra6 {[%emt 0:00:32]} 24. Rad1 {[%emt 0:00:47]} Qa7 {[%emt 0:03:43]} 25. Qxb5 {[%emt 0:01:02]} Rad6 {[%emt 0:05:16]} 26. Qc5 {[%emt 0:04:28]} Qxa3 {[%emt 0:06:57]} 27. Qa5 {[%emt 0:06:11]} Qe3 {[%emt 0:17:22]} 28. Re2 {[%emt 0:01:06]} Rf6+ {[%emt 0:05:01]} 29. Ke1 {[%emt 0:00:20]} Qc3+ {[%emt 0:01:54]} 30. Red2 {[%emt 0:00:45]} Re8 {[%emt 0:06:11]} 31. e5 {[%emt 0:08:58]} Rf5 {[%emt 0:03:19]} 0-1

[Event "Modransky Cup 2025"]
[Site "Modra"]
[Date "2025.02.22"]
[Round "4.21"]
[White "Sara, J.S."]
[Black "Hanzel, Richard"]
[Result "0-1"]
[Annotator "NA RC"]
[ECO "B10"]
[WhiteElo "1774"]
[BlackElo "1668"]
[PlyCount "34"]
[EventDate "2025.02.20"]
[EventCountry "SVK"]
[SourceTitle "playchess.com"]
[Source "ChessBase"]
[SourceQuality "1"]
[TimeControl "5400+30"]

1. e4 {[%emt 0:00:03]} c6 {[%emt 0:00:13]} 2. Bc4 {[%emt 0:00:30]} d5 {[%emt 0:00:08]} 3. exd5 {[%emt 0:00:34]} cxd5 {[%emt 0:00:08]} 4. Bb3 {[%emt 0:00:23]} Nf6 {[%emt 0:00:15]} 5. d4 {[%emt 0:00:19]} Bf5 {[%emt 0:00:24]} 6. Nf3 {[%emt 0:00:40]} e6 {[%emt 0:00:08]} 7. c4 {[%emt 0:01:22]} dxc4 {[%emt 0:00:40]} 8. Bxc4 {[%emt 0:00:13]} Bd6 {[%emt 0:00:24]} 9. d5 {[%emt 0:00:57]} exd5 {[%emt 0:01:01]} 10. Bxd5 {[%emt 0:00:11]} Nxd5 {[%emt 0:00:16]} 11. Qxd5 {[%emt 0:00:08]} Bb4+ {[%emt 0:00:11]} 12. Nc3 {[%emt 0:00:24]} Qxd5 {[%emt 0:00:19]} 13. Bd2 {[%emt 0:00:17]} Qe6+ {[%emt 0:00:19]} 14. Be3 {[%emt 0:01:26]} Bxc3+ {[%emt 0:00:12]} 15. Nd2 {[%emt 0:07:00]} Bxd2+ {[%emt 0:00:17]} 16. Ke2 {[%emt 0:02:01]} Bxe3 {[%emt 0:00:12]} 17. fxe3 {[%emt 0:00:16]} O-O {[%emt 0:00:06]} 0-1

[Event "Modransky Cup 2025"]
[Site "Modra"]
[Date "2025.02.22"]
[Round "4.22"]
[White "Hrckova, Anna"]
[Black "Vondruska, Leos"]
[Result "1-0"]
[Annotator "NA RC"]
[ECO "C07"]
[WhiteElo "1655"]
[BlackElo "1545"]
[PlyCount "129"]
[EventDate "2025.02.20"]
[EventCountry "SVK"]
[SourceTitle "playchess.com"]
[Source "ChessBase"]
[SourceQuality "1"]
[TimeControl "5400+30"]

1. e4 {[%emt 0:00:04]} e6 {[%emt 0:00:09]} 2. d4 {[%emt 0:00:08]} d5 {[%emt 0:00:10]} 3. Nd2 {[%emt 0:00:04]} c5 {[%emt 0:00:30]} 4. exd5 {[%emt 0:00:06]} cxd4 {[%emt 0:00:55]} 5. dxe6 {[%emt 0:04:35]} fxe6 {[%emt 0:06:40]} 6. Ngf3 {[%emt 0:01:08]} Bb4 {[%emt 0:07:44]} 7. a3 {[%emt 0:02:22]} Bxd2+ {[%emt 0:01:00]} 8. Qxd2 {[%emt 0:00:11]} Nc6 {[%emt 0:00:57]} 9. Bb5 {[%emt 0:00:39]} Nge7 {[%emt 0:01:33]} 10. Nxd4 {[%emt 0:01:28]} Bd7 {[%emt 0:01:16]} 11. Nxc6 {[%emt 0:04:18]} Bxc6 {[%emt 0:03:59]} 12. Bxc6+ {[%emt 0:00:30]} Nxc6 {[%emt 0:01:03]} 13. O-O {[%emt 0:01:24]} Qxd2 {[%emt 0:02:08]} 14. Bxd2 {[%emt 0:00:41]} Nd4 {[%emt 0:03:12]} 15. c3 {[%emt 0:03:28]} Nb3 {[%emt 0:02:26]} 16. Rad1 {[%emt 0:00:14]} Rc8 {[%emt 0:01:46]} 17. Bf4 {[%emt 0:01:31]} Rf8 {[%emt 0:01:00]} 18. Bg3 {[%emt 0:00:34]} g5 {[%emt 0:05:19]} 19. Rfe1 {[%emt 0:00:44]} Ke7 {[%emt 0:00:37]} 20. Bd6+ {[%emt 0:00:10]} Kf6 {[%emt 0:02:51]} 21. Bxf8 {[%emt 0:00:09]} Rxf8 {[%emt 0:00:14]} 22. Rd7 {[%emt 0:02:10]} Nc5 {[%emt 0:00:57]} 23. Rxh7 {[%emt 0:04:00]} Rd8 {[%emt 0:01:18]} 24. h3 {[%emt 0:00:57]} Kg6 {[%emt 0:06:18]} 25. Rc7 {[%emt 0:01:15]} Rd5 {[%emt 0:04:48]} 26. b4 {[%emt 0:00:40]} Na4 {[%emt 0:02:09]} 27. Rxe6+ {[%emt 0:00:19]} Kf5 {[%emt 0:00:52]} 28. Re1 {[%emt 0:01:01]} a5 {[%emt 0:02:57]} 29. g4+ {[%emt 0:00:18]} Kf6 {[%emt 0:01:06]} 30. c4 {[%emt 0:01:25]} Rd3 {[%emt 0:00:50]} 31. Re3 {[%emt 0:00:43]} Rd1+ {[%emt 0:00:28]} 32. Kg2 {[%emt 0:00:13]} b6 {[%emt 0:02:09]} 33. Rc6+ {[%emt 0:00:29]} Kf7 {[%emt 0:00:20]} 34. bxa5 {[%emt 0:00:40]} bxa5 {[%emt 0:00:35]} 35. Rb3 {[%emt 0:00:43]} Rd7 {[%emt 0:00:57]} 36. Rb5 {[%emt 0:00:11]} Ra7 {[%emt 0:01:27]} 37. Rf5+ {[%emt 0:00:27]} Kg7 {[%emt 0:01:09]} 38. Rxg5+ {[%emt 0:00:09]} Kh7 {[%emt 0:00:11]} 39. h4 {[%emt 0:01:05]} Nb2 {[%emt 0:00:26]} 40. Rh5+ {[%emt 0:01:25]} Kg7 {[%emt 0:00:22]} 41. Rch6 {[%emt 0:00:52]} Ra8 {[%emt 0:02:06]} 42. g5 {[%emt 0:01:10]} Rg8 {[%emt 0:00:47]} 43. Rc6 {[%emt 0:00:51]} Nd3 {[%emt 0:00:28]} 44. Rhh6 {[%emt 0:01:30]} Re8 {[%emt 0:03:16]} 45. Rc7+ {[%emt 0:01:32]} Kg8 {[%emt 0:01:24]} 46. g6 {[%emt 0:03:33]} Nf4+ {[%emt 0:01:46]} 47. Kf3 {[%emt 0:01:22]} Ne6 {[%emt 0:04:39]} 48. Ra7 {[%emt 0:03:13]} a4 {[%emt 0:00:45]} 49. Rhh7 {[%emt 0:01:49]} Rd8 {[%emt 0:03:16]} 50. Rae7 {[%emt 0:06:10]} Rd3+ {[%emt 0:03:44]} 51. Kg4 {[%emt 0:01:38]} Rd6 {[%emt 0:02:37]} 52. Kf5 {[%emt 0:02:39]} Nd4+ {[%emt 0:02:29]} 53. Ke5 {[%emt 0:00:36]} Rd8 {[%emt 0:01:06]} 54. Rd7 {[%emt 0:02:48]} Nc6+ {[%emt 0:03:57]} 55. Kd6 {[%emt 0:00:12]} Rxd7+ {[%emt 0:00:44]} 56. Rxd7 {[%emt 0:00:11]} Na5 {[%emt 0:01:58]} 57. c5 {[%emt 0:02:11]} Nc4+ {[%emt 0:00:27]} 58. Kd5 {[%emt 0:00:10]} Nxa3 {[%emt 0:00:17]} 59. h5 {[%emt 0:00:15]} Nb5 {[%emt 0:00:27]} 60. h6 {[%emt 0:00:21]} Kf8 {[%emt 0:00:50]} 61. g7+ {[%emt 0:00:28]} Kg8 {[%emt 0:00:31]} 62. Rd8+ {[%emt 0:00:11]} Kf7 {[%emt 0:00:18]} 63. g8=Q+ {[%emt 0:00:10]} Kf6 {[%emt 0:00:22]} 64. Rf8+ {[%emt 0:00:27]} Ke7 {[%emt 0:00:13]} 65. Qg7# {[%emt 0:00:11]} 1-0

[Event "Modransky Cup 2025"]
[Site "Modra"]
[Date "2025.02.22"]
[Round "4.23"]
[White "Gonda, Jan"]
[Black "Vorsilka, Jiri"]
[Result "1/2-1/2"]
[Annotator "NA RC"]
[ECO "E14"]
[WhiteElo "1633"]
[BlackElo "1653"]
[PlyCount "44"]
[EventDate "2025.02.20"]
[EventCountry "SVK"]
[SourceTitle "playchess.com"]
[Source "ChessBase"]
[SourceQuality "1"]
[TimeControl "5400+30"]

1. d4 {[%emt 0:02:44]} d5 {[%emt 0:00:07]} 2. c4 {[%emt 0:00:09]} e6 {[%emt 0:00:09]} 3. Nc3 {[%emt 0:00:21]} Nf6 {[%emt 0:00:11]} 4. e3 {[%emt 0:00:12]} b6 {[%emt 0:00:16]} 5. cxd5 {[%emt 0:03:26]} exd5 {[%emt 0:00:26]} 6. Bd3 {[%emt 0:00:44]} Bb7 {[%emt 0:00:23]} 7. Nf3 {[%emt 0:00:23]} Bd6 {[%emt 0:00:27]} 8. O-O {[%emt 0:00:26]} O-O {[%emt 0:00:24]} 9. Bd2 {[%emt 0:04:44]} Nbd7 {[%emt 0:00:47]} 10. Rc1 {[%emt 0:00:36]} Ne4 {[%emt 0:00:45]} 11. Bb1 {[%emt 0:06:33]} Ndf6 {[%emt 0:02:02]} 12. Re1 {[%emt 0:00:55]} c5 {[%emt 0:05:28]} 13. dxc5 {[%emt 0:07:01]} bxc5 {[%emt 0:00:17]} 14. Ne2 {[%emt 0:04:04]} Qb6 {[%emt 0:03:22]} 15. b3 {[%emt 0:02:51]} Nc3 {[%emt 0:07:59]} 16. Nxc3 {[%emt 0:02:04]} a5 {[%emt 0:03:44]} 17. Ne2 {[%emt 0:08:18]} a4 {[%emt 0:00:31]} 18. Bc2 {[%emt 0:02:39]} axb3 {[%emt 0:01:27]} 19. axb3 {[%emt 0:00:23]} Ra3 {[%emt 0:05:38]} 20. Rb1 {[%emt 0:01:00]} Rfa8 {[%emt 0:00:30]} 21. Bc3 {[%emt 0:02:46]} Bc6 {[%emt 0:02:52]} 22. Nd2 {[%emt 0:00:30]} Bb5 {[%emt 0:00:30]} 1/2-1/2

[Event "Modransky Cup 2025"]
[Site "Modra"]
[Date "2025.02.22"]
[Round "5.1"]
[White "Stevik, Patrik"]
[Black "Janik, Marek Tobias"]
[Result "1-0"]
[Annotator "ChessBase"]
[ECO "B28"]
[WhiteElo "2331"]
[BlackElo "2002"]
[PlyCount "63"]
[EventDate "2025.02.20"]
[EventCountry "SVK"]
[SourceTitle "playchess.com"]
[Source "ChessBase"]
[SourceQuality "1"]
[TimeControl "5400+30"]

1. Nf3 {[%emt 0:00:12]} c5 {[%emt 0:00:14]} 2. e4 {[%emt 0:05:14]} a6 {[%emt 0:02:59]} 3. c4 {[%emt 0:03:25]} Nc6 {[%emt 0:00:05]} 4. d4 {[%emt 0:00:38]} cxd4 {[%emt 0:00:05]} 5. Nxd4 {[%emt 0:00:02]} e5 {[%emt 0:00:07]} 6. Nc2 {[%emt 0:01:07]} Nf6 {[%emt 0:00:32]} 7. Nc3 {[%emt 0:00:12]} d6 {[%emt 0:00:57]} 8. Be2 {[%emt 0:00:26]} h6 {[%emt 0:01:44]} 9. O-O {[%emt 0:00:30]} Be7 {[%emt 0:02:28]} 10. Kh1 {[%emt 0:04:33]} O-O {[%emt 0:01:14]} 11. Be3 {[%emt 0:07:36]} Be6 {[%emt 0:03:33]} 12. f3 {[%emt 0:00:52]} Re8 {[%emt 0:02:07]} 13. Qd2 {[%emt 0:01:25]} Bf8 {[%emt 0:01:35]} 14. Rac1 {[%emt 0:03:27]} Ne7 {[%emt 0:03:52]} 15. Rfd1 {[%emt 0:03:36]} Ng6 {[%emt 0:00:11]} 16. Nb4 {[%emt 0:00:14]} Rc8 {[%emt 0:08:29]} 17. Nbd5 {[%emt 0:06:19]} Nxd5 {[%emt 0:13:37]} 18. Nxd5 {[%emt 0:00:43]} Bxd5 {[%emt 0:01:04]} 19. Qxd5 {[%emt 0:05:54]} Qc7 {[%emt 0:30:34]} 20. g3 {[%emt 0:01:09]} Red8 {[%emt 0:01:08]} 21. b4 {[%emt 0:01:36]} Qc6 {[%emt 0:04:31]} 22. Qxc6 {[%emt 0:04:36]} Rxc6 {[%emt 0:00:35]} 23. a4 {[%emt 0:00:56]} Rcc8 {[%emt 0:03:13]} 24. Bb6 {[%emt 0:00:39]} Re8 {[%emt 0:00:05]} 25. b5 {[%emt 0:05:47]} Ra8 {[%emt 0:04:44]} 26. a5 {[%emt 0:00:56]} Be7 {[%emt 0:00:40]} 27. c5 {[%emt 0:01:10]} dxc5 {[%emt 0:00:22]} 28. Rd7 {[%emt 0:00:25]} Nf8 {[%emt 0:02:10]} 29. Rxb7 {[%emt 0:00:09]} Ne6 {[%emt 0:00:13]} 30. bxa6 {[%emt 0:00:27]} Kf8 {[%emt 0:02:27]} 31. Bb5 {[%emt 0:00:26]} Red8 {[%emt 0:03:13]} 32. a7 {[%emt 0:00:16]} 1-0

[Event "Modransky Cup 2025"]
[Site "Modra"]
[Date "2025.02.22"]
[Round "5.2"]
[White "Banas, Kamil"]
[Black "Shirinyan, Daniel"]
[Result "0-1"]
[Annotator "ChessBase"]
[ECO "B81"]
[WhiteElo "2178"]
[BlackElo "2231"]
[PlyCount "70"]
[EventDate "2025.02.20"]
[EventCountry "SVK"]
[SourceTitle "playchess.com"]
[Source "ChessBase"]
[SourceQuality "1"]
[TimeControl "5400+30"]

1. e4 {[%emt 0:00:03]} c5 {[%emt 0:03:57]} 2. Nf3 {[%emt 0:00:07]} d6 {[%emt 0:00:04]} 3. d4 {[%emt 0:00:08]} cxd4 {[%emt 0:00:06]} 4. Nxd4 {[%emt 0:00:03]} Nf6 {[%emt 0:00:08]} 5. Nc3 {[%emt 0:00:04]} a6 {[%emt 0:00:04]} 6. h3 {[%emt 0:00:30]} e6 {[%emt 0:00:07]} 7. g4 {[%emt 0:00:10]} Be7 {[%emt 0:00:09]} 8. g5 {[%emt 0:01:22]} Nfd7 {[%emt 0:00:08]} 9. h4 {[%emt 0:00:41]} b5 {[%emt 0:00:06]} 10. a3 {[%emt 0:00:52]} Bb7 {[%emt 0:00:05]} 11. Rg1 {[%emt 0:07:07]} Nc6 {[%emt 0:02:36]} 12. Nxc6 {[%emt 0:02:30]} Bxc6 {[%emt 0:00:02]} 13. Be3 {[%emt 0:02:19]} Qb8 {[%emt 0:12:48]} 14. Qd4 {[%emt 0:06:35]} O-O {[%emt 0:05:27]} 15. h5 {[%emt 0:04:03]} a5 {[%emt 0:01:35]} 16. g6 {[%emt 0:14:19]} Bf6 {[%emt 0:02:15]} 17. gxh7+ {[%emt 0:00:15]} Kxh7 {[%emt 0:09:55]} 18. Qd2 {[%emt 0:01:27]} b4 {[%emt 0:00:35]} 19. Nd1 {[%emt 0:03:17]} Ne5 {[%emt 0:02:20]} 20. Be2 {[%emt 0:01:05]} Bxe4 {[%emt 0:06:10]} 21. Bg5 {[%emt 0:00:30]} Qd8 {[%emt 0:10:19]} 22. f4 {[%emt 0:01:16]} Nc6 {[%emt 0:04:28]} 23. Nf2 {[%emt 0:01:33]} Bf5 {[%emt 0:00:48]} 24. Bd3 {[%emt 0:00:59]} Nd4 {[%emt 0:01:26]} 25. Rg3 {[%emt 0:02:44]} Rc8 {[%emt 0:06:51]} 26. Rc1 {[%emt 0:11:33]} bxa3 {[%emt 0:04:11]} 27. bxa3 {[%emt 0:00:02]} Bxg5 {[%emt 0:03:58]} 28. fxg5 {[%emt 0:00:10]} Rc5 {[%emt 0:02:05]} 29. Ng4 {[%emt 0:02:19]} Qa8 {[%emt 0:02:00]} 30. g6+ {[%emt 0:02:08]} Kh8 {[%emt 0:00:56]} 31. h6 {[%emt 0:04:01]} Bxg4 {[%emt 0:01:16]} 32. hxg7+ {[%emt 0:04:24]} Kxg7 {[%emt 0:00:09]} 33. Qf4 {[%emt 0:01:16]} Qh1+ {[%emt 0:01:12]} 34. Kf2 {[%emt 0:00:25]} Qh2+ {[%emt 0:00:50]} 35. Kf1 {[%emt 0:00:57]} fxg6 {[%emt 0:00:29]} 0-1